fUSD/lending_fUSD_20250611
["ID","MTS","AMOUNT","RATE_DAILY","PERIOD"]
[365464571,1749684647246,-490.0,0.00019178,2]
[365464572,1749684647256,-3207.44,0.00019178,2]
[365464573,1749684647266,-3207.44,0.00019178,2]
[365464574,1749684647276,-2290.91,0.00019178,2]
[365464575,1749684647285,-523.53,0.00019178,2]
[365464576,1749684647295,-1035.12,0.00019178,2]
[365464577,1749684647304,-490.0,0.00019178,2]
[365464578,1749684647314,-498.21,0.00019178,2]
[365464579,1749684647323,-550.73,0.00019178,2]
[365464580,1749684647332,-490.0,0.00019178,2]
[365464581,1749684647342,-490.0,0.00019178,2]
[365464582,1749684647351,-1921.54,0.00019178,2]
[365464583,1749684647360,-572.01,0.00019178,2]
[365464584,1749684647370,-520.56,0.00019178,2]
[365464585,1749684647380,-480.0,0.00019178,2]
[365464586,1749684647389,-490.0,0.00019178,2]
[365464587,1749684647399,-5194.06,0.00019178,2]
[365464588,1749684647409,-608.09,0.00019178,2]
[365464589,1749684647418,-791.13,0.00019178,2]
[365464590,1749684647427,-1621.2,0.00019178,2]
[365464591,1749684647437,-996.51,0.00019178,2]
[365464592,1749684647446,-699.95,0.00019178,2]
[365464593,1749684647456,-481.7728298,0.00019178,2]
[365464594,1749684647465,-1096.52,0.00019178,2]
[365464595,1749684647474,-2844.99,0.00019178,2]
[365464596,1749684647484,-797.87,0.00019178,2]
[365464597,1749684647492,-529.15,0.00019178,2]
[365464598,1749684647502,-626.82,0.00019178,2]
[365464599,1749684647511,-1665.49,0.00019178,2]
[365464600,1749684647520,-837.58,0.00019178,2]
[365464601,1749684647530,-490.0,0.00019178,2]
[365464602,1749684647539,-2985.73,0.00019178,2]
[365464603,1749684647550,-3733.38,0.00019178,2]
[365464604,1749684647559,-15699.46,0.00019178,2]
[365464605,1749684647567,-615.6,0.00019178,2]
[365464606,1749684647577,-470.0,0.00019178,2]
[365464607,1749684647586,-480.0,0.00019178,2]
[365464608,1749684647595,-1247.27,0.00019178,2]
[365464609,1749684647605,-565.0,0.00019178,2]
[365464610,1749684647615,-480.0,0.00019178,2]
[365464611,1749684647624,-715.71,0.00019178,2]
[365464612,1749684647633,-299.1656514,0.00019178,2]
[365464613,1749684647642,-490.0,0.00019178,2]
[365464614,1749684647651,-490.0,0.00019178,2]
[365464615,1749684647660,-164.48132503,0.00019178,2]
[365464616,1749684647669,-470.0,0.00019178,2]
[365464617,1749684647679,-397.30792608,0.00019178,2]
[365464618,1749684647688,-280.27049128,0.00019178,2]
[365464619,1749684647698,-500.0,0.00019178,2]
[365464620,1749684647708,-500.0,0.00019178,2]
[365464621,1749684647717,-470.0,0.00019178,2]
[365464622,1749684647726,-500.0,0.00019178,2]
[365464623,1749684647735,-255.24700306,0.00019178,2]
[365464624,1749684647744,-490.0,0.00019178,2]
[365464625,1749684647753,-1029.81,0.00019178,2]
[365464626,1749684647762,-490.0,0.00019178,2]
[365464627,1749684647771,-559.92,0.00019178,2]
[365464628,1749684647781,-556.8,0.00019178,2]
[365464629,1749684647789,-3379.45,0.00019178,2]
[365464630,1749684647798,-490.0,0.00019178,2]
[365464631,1749684647808,-490.0,0.00019178,2]
[365464632,1749684647816,-2596.54,0.00019178,2]
[365464633,1749684647825,-689.68,0.00019178,2]
[365464634,1749684647834,-490.0,0.00019178,2]
[365464635,1749684647842,-1647.43,0.00019178,2]
[365464636,1749684647851,-178.66,0.00019178,2]
[365464637,1749684647862,-796.98,0.00019193,2]
[365464638,1749684647874,-151.98464244,0.00019193,2]
[365464639,1749684647883,-2279.95,0.000192,2]
[365464640,1749684647892,-6839.85,0.0001921,2]
[365464641,1749684647901,-272.38095513,0.0001921,2]
[365464642,1749684647912,-151.98464244,0.00019222,2]
[365464643,1749684647921,-582.23197975,0.00019238,2]
[365464644,1749684647931,-168.21315284,0.00019242,2]
[365464645,1749684647940,-161.62472342,0.00019242,2]
[365464646,1749684647949,-283.28704828,0.00019242,2]
[365464647,1749684647959,-272.38095513,0.00019245,2]
[365464648,1749684647968,-151.98464244,0.00019251,2]
[365464649,1749684647977,-272.38095513,0.00019279,2]
[365464650,1749684647986,-151.98464244,0.00019279,2]
[365464651,1749684647996,-1000.0,0.000193,2]
[365464652,1749684648005,-151.98464244,0.00019308,2]
[365464653,1749684648015,-272.38095513,0.00019314,2]
[365464654,1749684648024,-151.51745045,0.00019315,2]
[365464655,1749684648034,-582.23197975,0.00019319,2]
[365464656,1749684648043,-151.98464244,0.00019337,2]
[365464657,1749684648052,-500.0,0.00019341,2]
[365464658,1749684648061,-170.31,0.00019341,2]
[365464659,1749684648071,-561.48,0.00019341,2]
[365464660,1749684648081,-500.0,0.00019341,2]
[365464661,1749684648091,-3207.44,0.00019341,2]
[365464662,1749684648101,-301.43,0.00019342,2]
[365464663,1749684648110,-458.14852214,0.00019342,2]
[365464664,1749684648119,-915.666147,0.00019342,2]
[365464665,1749684648128,-1526.497343,0.00019342,2]
[365464666,1749684648138,-490.0,0.00019342,2]
[365464667,1749684648147,-490.0,0.00019342,2]
[365464668,1749684648157,-490.0,0.00019342,2]
[365464669,1749684648166,-490.0,0.00019342,2]
[365464670,1749684648175,-490.0,0.00019342,2]
[365464671,1749684648184,-490.0,0.00019342,2]
[365464672,1749684648193,-330.0,0.00019342,2]
[365464673,1749684648202,-490.0,0.00019342,2]
[365464674,1749684648212,-430.0,0.00019342,2]
[365464675,1749684648221,-490.0,0.00019342,2]
[365464676,1749684648230,-339.11644418,0.00019342,2]
[365464677,1749684648239,-490.0,0.00019342,2]
[365464678,1749684648248,-490.0,0.00019342,2]
[365464679,1749684648257,-491.99,0.00019342,2]
[365464680,1749684648267,-490.0,0.00019342,2]
[365464681,1749684648276,-490.0,0.00019342,2]
[365464682,1749684648286,-451.02986098,0.00019342,2]
[365464683,1749684648295,-490.0,0.00019342,2]
[365464684,1749684648305,-490.0,0.00019342,2]
[365464685,1749684648315,-480.0,0.00019342,2]
[365464686,1749684648324,-490.0,0.00019342,2]
[365464687,1749684648333,-490.0,0.00019342,2]
[365464688,1749684648342,-490.0,0.00019342,2]
[365464689,1749684648351,-441.02948003,0.00019342,2]
[365464690,1749684648360,-427.01777919,0.00019342,2]
[365464691,1749684648368,-490.0,0.00019342,2]
[365464692,1749684648377,-411.00564361,0.00019342,2]
[365464693,1749684648387,-490.0,0.00019342,2]
[365464694,1749684648396,-470.0,0.00019342,2]
[365464695,1749684648405,-490.0,0.00019342,2]
[365464696,1749684648414,-490.0,0.00019342,2]
[365464697,1749684648423,-490.0,0.00019342,2]
[365464698,1749684648432,-492.36948059,0.00019342,2]
[365464699,1749684648442,-490.0,0.00019342,2]
[365464700,1749684648451,-490.0,0.00019342,2]
[365464701,1749684648460,-268.26849159,0.00019342,2]
[365464702,1749684648469,-460.0,0.00019342,2]
[365464703,1749684648479,-490.0,0.00019342,2]
[365464704,1749684648488,-490.0,0.00019342,2]
[365464705,1749684648497,-490.0,0.00019342,2]
[365464706,1749684648506,-490.0,0.00019342,2]
[365464707,1749684648516,-488.08276855,0.00019342,2]
[365464708,1749684648525,-490.0,0.00019342,2]
[365464709,1749684648534,-490.0,0.00019342,2]
[365464710,1749684648543,-480.0,0.00019342,2]
[365464711,1749684648552,-490.0,0.00019342,2]
[365464712,1749684648561,-470.0,0.00019342,2]
[365464713,1749684648570,-490.0,0.00019342,2]
[365464714,1749684648579,-460.0,0.00019342,2]
[365464715,1749684648588,-974.67,0.00019342,2]
[365464716,1749684648597,-460.0,0.00019342,2]
[365464717,1749684648606,-490.0,0.00019342,2]
[365464718,1749684648615,-490.0,0.00019342,2]
[365464719,1749684648625,-604.69,0.00019342,2]
[365464720,1749684648634,-592.04,0.00019342,2]
[365464721,1749684648644,-720.08,0.00019342,2]
[365464722,1749684648653,-490.0,0.00019342,2]
[365464723,1749684648663,-490.0,0.00019342,2]
[365464724,1749684648672,-490.0,0.00019342,2]
[365464725,1749684648681,-490.0,0.00019342,2]
[365464726,1749684648690,-490.0,0.00019342,2]
[365464727,1749684648700,-470.0,0.00019342,2]
[365464728,1749684648709,-490.0,0.00019342,2]
[365464729,1749684648718,-490.0,0.00019342,2]
[365464730,1749684648728,-490.0,0.00019342,2]
[365464731,1749684648737,-490.0,0.00019342,2]
[365464732,1749684648747,-450.0,0.00019342,2]
[365464733,1749684648757,-490.0,0.00019342,2]
[365464734,1749684648767,-470.0,0.00019342,2]
[365464735,1749684648776,-430.0,0.00019342,2]
[365464736,1749684648786,-490.0,0.00019342,2]
[365464737,1749684648796,-490.0,0.00019342,2]
[365464738,1749684648805,-519.52,0.00019342,2]
[365464739,1749684648814,-577.95,0.00019342,2]
[365464740,1749684648824,-490.0,0.00019342,2]
[365464741,1749684648833,-272.07018617,0.00019342,2]
[365464742,1749684648843,-490.0,0.00019342,2]
[365464743,1749684648852,-490.0,0.00019342,2]
[365464744,1749684648862,-777.97,0.00019342,2]
[365464745,1749684648875,-490.0,0.00019342,2]
[365464746,1749684648887,-490.0,0.00019342,2]
[365464747,1749684648897,-490.0,0.00019342,2]
[365464748,1749684648907,-460.0,0.00019342,2]
[365464749,1749684648916,-1275.29,0.00019342,2]
[365464750,1749684648925,-490.0,0.00019342,2]
[365464751,1749684648934,-490.0,0.00019342,2]
[365464752,1749684648944,-490.0,0.00019342,2]
[365464753,1749684648953,-1108.22,0.00019342,2]
[365464754,1749684648962,-490.0,0.00019342,2]
[365464755,1749684648972,-490.0,0.00019342,2]
[365464756,1749684648982,-490.0,0.00019342,2]
[365464757,1749684648992,-819.52,0.00019342,2]
[365464758,1749684649001,-490.0,0.00019342,2]
[365464759,1749684649011,-490.0,0.00019342,2]
[365464760,1749684649020,-470.0,0.00019342,2]
[365464761,1749684649029,-490.0,0.00019342,2]
[365464762,1749684649039,-490.0,0.00019342,2]
[365464763,1749684649048,-1082.97,0.00019342,2]
[365464764,1749684649058,-490.0,0.00019342,2]
[365464765,1749684649067,-490.0,0.00019342,2]
[365464766,1749684649077,-490.0,0.00019342,2]
[365464767,1749684649086,-460.0,0.00019342,2]
[365464768,1749684649096,-1181.69,0.00019342,2]
[365464769,1749684649106,-490.0,0.00019342,2]
[365464770,1749684649115,-490.0,0.00019342,2]
[365464771,1749684649124,-968.24,0.00019342,2]
[365464772,1749684649135,-1449.67,0.00019342,2]
[365464773,1749684649144,-490.0,0.00019342,2]
[365464774,1749684649153,-414.7864554,0.00019342,2]
[365464775,1749684649162,-490.0,0.00019342,2]
[365464776,1749684649172,-490.0,0.00019342,2]
[365464777,1749684649181,-1044.28,0.00019342,2]
[365464778,1749684649190,-1426.18,0.00019342,2]
[365464779,1749684649199,-985.6,0.00019342,2]
[365464780,1749684649208,-490.0,0.00019342,2]
[365464781,1749684649217,-490.0,0.00019342,2]
[365464782,1749684649227,-787.22,0.00019342,2]
[365464783,1749684649236,-490.0,0.00019342,2]
[365464784,1749684649245,-490.0,0.00019342,2]
[365464785,1749684649254,-2036.37,0.00019342,2]
[365464786,1749684649263,-488.59879986,0.00019342,2]
[365464787,1749684649273,-490.0,0.00019342,2]
[365464788,1749684649282,-490.0,0.00019342,2]
[365464789,1749684649291,-490.0,0.00019342,2]
[365464790,1749684649300,-597.48459799,0.00019342,2]
[365464791,1749684649309,-888.69,0.00019342,2]
[365464792,1749684649318,-495.72,0.00019342,2]
[365464793,1749684649328,-697.65,0.00019342,2]
[365464794,1749684649337,-1006.63,0.00019342,2]
[365464795,1749684649346,-1508.54,0.00019342,2]
[365464796,1749684649356,-490.0,0.00019342,2]
[365464797,1749684649366,-592.3,0.00019342,2]
[365464798,1749684649375,-490.0,0.00019342,2]
[365464799,1749684649386,-859.41,0.00019342,2]
[365464800,1749684649395,-490.0,0.00019342,2]
[365464801,1749684649405,-460.0,0.00019342,2]
[365464802,1749684649414,-208.95909465,0.00019342,2]
[365464803,1749684649424,-490.0,0.00019342,2]
[365464804,1749684649434,-490.0,0.00019342,2]
[365464805,1749684649443,-490.0,0.00019342,2]
[365464806,1749684649453,-490.0,0.00019342,2]
[365464807,1749684649462,-963.26,0.00019342,2]
[365464808,1749684649471,-490.0,0.00019342,2]
[365464809,1749684649481,-548.82185495,0.00019342,2]
[365464810,1749684649490,-490.0,0.00019342,2]
[365464811,1749684649500,-937.72,0.00019342,2]
[365464812,1749684649510,-460.0,0.00019342,2]
[365464813,1749684649519,-490.0,0.00019342,2]
[365464814,1749684649529,-715.06,0.00019342,2]
[365464815,1749684649539,-1216.58,0.00019342,2]
[365464816,1749684649549,-840.7,0.00019342,2]
[365464817,1749684649558,-490.0,0.00019342,2]
[365464818,1749684649568,-490.0,0.00019342,2]
[365464819,1749684649577,-1168.2,0.00019342,2]
[365464820,1749684649587,-490.0,0.00019342,2]
[365464821,1749684649596,-490.0,0.00019342,2]
[365464822,1749684649605,-490.0,0.00019342,2]
[365464823,1749684649615,-440.0,0.00019342,2]
[365464824,1749684649624,-490.0,0.00019342,2]
[365464825,1749684649634,-490.0,0.00019342,2]
[365464826,1749684649644,-490.0,0.00019342,2]
[365464827,1749684649653,-656.33,0.00019342,2]
[365464828,1749684649663,-490.0,0.00019342,2]
[365464829,1749684649672,-490.0,0.00019342,2]
[365464830,1749684649681,-490.0,0.00019342,2]
[365464831,1749684649691,-982.32,0.00019342,2]
[365464832,1749684649700,-838.89,0.00019342,2]
[365464833,1749684649709,-490.0,0.00019342,2]
[365464834,1749684649719,-707.37,0.00019342,2]
[365464835,1749684649728,-490.0,0.00019342,2]
[365464836,1749684649737,-832.31,0.00019342,2]
[365464837,1749684649747,-490.0,0.00019342,2]
[365464838,1749684649756,-490.0,0.00019342,2]
[365464839,1749684649765,-1265.23,0.00019342,2]
[365464840,1749684649775,-490.0,0.00019342,2]
[365464841,1749684649785,-490.0,0.00019342,2]
[365464842,1749684649795,-1673.45,0.00019342,2]
[365464843,1749684649805,-578.8,0.00019342,2]
[365464844,1749684649814,-490.0,0.00019342,2]
[365464845,1749684649824,-724.09,0.00019342,2]
[365464846,1749684649834,-1524.56,0.00019342,2]
[365464847,1749684649844,-490.0,0.00019342,2]
[365464848,1749684649853,-490.0,0.00019342,2]
[365464849,1749684649863,-1364.18,0.00019342,2]
[365464850,1749684649876,-460.0,0.00019342,2]
[365464851,1749684649886,-490.0,0.00019342,2]
[365464852,1749684649896,-490.0,0.00019342,2]
[365464853,1749684649906,-698.98,0.00019342,2]
[365464854,1749684649917,-490.0,0.00019342,2]
[365464855,1749684649927,-490.0,0.00019342,2]
[365464856,1749684649937,-490.0,0.00019342,2]
[365464857,1749684649948,-1370.52,0.00019342,2]
[365464858,1749684649957,-490.0,0.00019342,2]
[365464859,1749684649967,-490.0,0.00019342,2]
[365464860,1749684649976,-490.0,0.00019342,2]
[365464861,1749684649986,-490.0,0.00019342,2]
[365464862,1749684649995,-883.88,0.00019342,2]
[365464863,1749684650005,-704.19,0.00019342,2]
[365464864,1749684650015,-1517.25,0.00019342,2]
[365464865,1749684650024,-1213.12,0.00019342,2]
[365464866,1749684650034,-490.0,0.00019342,2]
[365464867,1749684650044,-490.0,0.00019342,2]
[365464868,1749684650054,-636.02,0.00019342,2]
[365464869,1749684650064,-490.0,0.00019342,2]
[365464870,1749684650073,-1016.67,0.00019342,2]
[365464871,1749684650083,-490.0,0.00019342,2]
[365464872,1749684650093,-490.0,0.00019342,2]
[365464873,1749684650103,-450.0,0.00019342,2]
[365464874,1749684650113,-490.0,0.00019342,2]
[365464875,1749684650122,-604.3,0.00019342,2]
[365464876,1749684650133,-490.0,0.00019342,2]
[365464877,1749684650143,-490.0,0.00019342,2]
[365464878,1749684650152,-1107.57,0.00019342,2]
[365464879,1749684650162,-1132.57,0.00019342,2]
[365464880,1749684650172,-490.0,0.00019342,2]
[365464881,1749684650182,-2567.9,0.00019342,2]
[365464882,1749684650192,-1000.0,0.00019342,2]
[365464883,1749684650202,-1015.61,0.00019342,2]
[365464884,1749684650212,-450.0,0.00019342,2]
[365464885,1749684650222,-634.05,0.00019342,2]
[365464886,1749684650232,-490.0,0.00019342,2]
[365464887,1749684650242,-460.0,0.00019342,2]
[365464888,1749684650252,-1090.2,0.00019342,2]
[365464889,1749684650261,-480.0,0.00019342,2]
[365464890,1749684650271,-1089.02,0.00019342,2]
[365464891,1749684650281,-730.07,0.00019342,2]
[365464892,1749684650291,-490.0,0.00019342,2]
[365464893,1749684650301,-618.33,0.00019342,2]
[365464894,1749684650311,-931.66,0.00019342,2]
[365464895,1749684650321,-490.0,0.00019342,2]
[365464896,1749684650331,-586.34,0.00019342,2]
[365464897,1749684650341,-1305.23,0.00019342,2]
[365464898,1749684650351,-490.0,0.00019342,2]
[365464899,1749684650361,-780.55,0.00019342,2]
[365464900,1749684650371,-931.21,0.00019342,2]
[365464901,1749684650381,-736.91,0.00019342,2]
[365464902,1749684650392,-5212.41,0.00019342,2]
[365464903,1749684650402,-490.0,0.00019342,2]
[365464904,1749684650411,-544.96,0.00019342,2]
[365464905,1749684650421,-568.17258899,0.00019342,2]
[365464906,1749684650431,-577.4,0.00019342,2]
[365464907,1749684650441,-12083.12,0.00019342,2]
[365464908,1749684650450,-1696.27,0.00019342,2]
[365464909,1749684650460,-490.0,0.00019342,2]
[365464910,1749684650470,-1053.6,0.00019342,2]
[365464911,1749684650480,-490.0,0.00019342,2]
[365464912,1749684650490,-1013.27,0.00019342,2]
[365464913,1749684650500,-1363.1,0.00019342,2]
[365464914,1749684650509,-115.16173919,0.00019342,2]
[365464915,1749684651135,-637.39,0.00019178,2]
[365464916,1749684651146,-490.0,0.00019178,2]
[365464917,1749684651156,-374.83826081,0.00019342,2]
[365464918,1749684651167,-2355.6,0.00019342,2]
[365464919,1749684651177,-79.0289638,0.00019342,2]
[365464920,1749684651190,-410.9710362,0.00019342,2]
[365464921,1749684651201,-300.0,0.00019342,2]
[365464922,1749684651210,-480.0,0.00019342,2]
[365464923,1749684651220,-519.9,0.00019342,2]
[365464924,1749684651230,-490.0,0.00019342,2]
[365464925,1749684651240,-1896.81,0.00019342,2]
[365464926,1749684651250,-490.0,0.00019342,2]
[365464927,1749684651259,-5347.22,0.00019342,2]
[365464928,1749684651269,-1039.46,0.00019342,2]
[365464929,1749684651279,-490.0,0.00019342,2]
[365464930,1749684651289,-490.0,0.00019342,2]
[365464931,1749684651299,-984.69,0.00019342,2]
[365464932,1749684651309,-1380.8,0.00019342,2]
[365464933,1749684651319,-490.0,0.00019342,2]
[365464934,1749684651328,-4290.37,0.00019342,2]
[365464935,1749684651338,-490.0,0.00019342,2]
[365464936,1749684651348,-490.0,0.00019342,2]
[365464937,1749684651358,-490.0,0.00019342,2]
[365464938,1749684651368,-1047.71,0.00019342,2]
[365464939,1749684651378,-586.48,0.00019342,2]
[365464940,1749684651389,-490.0,0.00019342,2]
[365464941,1749684651399,-1097.83,0.00019342,2]
[365464942,1749684651409,-490.0,0.00019342,2]
[365464943,1749684651419,-688.4,0.00019342,2]
[365464944,1749684651428,-1213.86,0.00019342,2]
[365464945,1749684651438,-490.0,0.00019342,2]
[365464946,1749684651448,-952.23,0.00019342,2]
[365464947,1749684651458,-1720.26,0.00019342,2]
[365464948,1749684651468,-5049.71,0.00019342,2]
[365464950,1749684651478,-951.73,0.00019342,2]
[365464951,1749684651488,-978.0,0.00019342,2]
[365464952,1749684651498,-1841.88,0.00019342,2]
[365464953,1749684651508,-1037.32,0.00019342,2]
[365464954,1749684651518,-490.0,0.00019342,2]
[365464955,1749684651527,-956.03,0.00019342,2]
[365464956,1749684651537,-695.08,0.00019342,2]
[365464957,1749684651547,-490.0,0.00019342,2]
[365464958,1749684651556,-460.0,0.00019342,2]
[365464959,1749684651566,-1050.39,0.00019342,2]
[365464960,1749684651576,-10134.08,0.00019342,2]
[365464961,1749684651586,-1840.78,0.00019342,2]
[365464962,1749684651596,-2534.67,0.00019342,2]
[365464963,1749684651606,-2418.16,0.00019342,2]
[365464965,1749684651617,-557.49,0.00019342,2]
[365464973,1749684651879,-490.0,0.00019342,2]
[365464974,1749684651891,-490.0,0.00019342,2]
[365464976,1749684651900,-490.0,0.00019342,2]
[365464977,1749684651911,-490.0,0.00019342,2]
[365464978,1749684651920,-490.0,0.00019342,2]
[365464980,1749684651930,-2240.32,0.00019342,2]
[365464981,1749684651941,-852.19,0.00019342,2]
[365464982,1749684651952,-172.08,0.00019342,2]
[365464983,1749684651961,-2320.28,0.00019342,2]
[365464985,1749684651971,-2693.39,0.00019342,2]
[365464986,1749684651980,-1502.05,0.00019342,2]
[365464987,1749684651990,-490.0,0.00019342,2]
[365464989,1749684651999,-460.0,0.00019342,2]
[365464990,1749684652009,-490.0,0.00019342,2]
[365464992,1749684652023,-768.58,0.00019342,2]
[365464993,1749684652032,-490.0,0.00019342,2]
[365464994,1749684652042,-1134.95,0.00019342,2]
[365464995,1749684652052,-2014.41,0.00019342,2]
[365464997,1749684652062,-1103.41,0.00019342,2]
[365464998,1749684652072,-634.86,0.00019342,2]
[365464999,1749684652082,-5068.45,0.00019342,2]
[365465001,1749684652092,-490.0,0.00019342,2]
[365465002,1749684652102,-640.59,0.00019342,2]
[365465003,1749684652112,-490.0,0.00019342,2]
[365465005,1749684652122,-1536.51,0.00019342,2]
[365465006,1749684652133,-490.0,0.00019342,2]
[365465007,1749684652142,-490.0,0.00019342,2]
[365465009,1749684652152,-1293.79,0.00019342,2]
[365465010,1749684652162,-490.0,0.00019342,2]
[365465011,1749684652172,-891.14,0.00019342,2]
[365465012,1749684652182,-2687.97,0.00019342,2]
[365465014,1749684652191,-490.0,0.00019342,2]
[365465015,1749684652201,-490.0,0.00019342,2]
[365465016,1749684652211,-664.05,0.00019342,2]
[365465017,1749684652220,-490.0,0.00019342,2]
[365465019,1749684652230,-1072.23,0.00019342,2]
[365465020,1749684652240,-1562.3,0.00019342,2]
[365465021,1749684652250,-5625.85,0.00019342,2]
[365465022,1749684652260,-1113.69,0.00019342,2]
[365465024,1749684652269,-685.24,0.00019342,2]
[365465025,1749684652278,-460.0,0.00019342,2]
[365465026,1749684652288,-1960.77,0.00019342,2]
[365465027,1749684652297,-490.0,0.00019342,2]
[365465029,1749684652307,-3450.91,0.00019342,2]
[365465030,1749684652316,-712.43,0.00019342,2]
[365465031,1749684652327,-6335.16,0.00019342,2]
[365465032,1749684652336,-1582.28,0.00019342,2]
[365465034,1749684652346,-505.4,0.00019342,2]
[365465035,1749684652356,-3504.01,0.00019342,2]
[365465036,1749684652366,-523.17929615,0.00019342,2]
[365465038,1749684652376,-731.02,0.00019342,2]
[365465039,1749684652386,-490.0,0.00019342,2]
[365465040,1749684652396,-855.54,0.00019342,2]
[365465042,1749684652406,-3618.76,0.00019342,2]
[365465043,1749684652416,-490.0,0.00019342,2]
[365465044,1749684652426,-2010.03,0.00019342,2]
[365465045,1749684652435,-2482.93,0.00019342,2]
[365465047,1749684652445,-4311.04,0.00019342,2]
[365465048,1749684652455,-1199.51,0.00019342,2]
[365465049,1749684652465,-470.0,0.00019342,2]
[365465051,1749684652474,-951.42,0.00019342,2]
[365465052,1749684652483,-800.63,0.00019342,2]
[365465053,1749684652493,-1290.44,0.00019342,2]
[365465054,1749684652504,-490.0,0.00019342,2]
[365465055,1749684652514,-1000.0,0.00019342,2]
[365465056,1749684652523,-1721.55,0.00019342,2]
[365465058,1749684652533,-947.9,0.00019342,2]
[365465059,1749684652543,-521.98,0.00019342,2]
[365465060,1749684652552,-490.0,0.00019342,2]
[365465061,1749684652563,-1436.58,0.00019342,2]
[365465062,1749684652572,-712.17,0.00019342,2]
[365465063,1749684652582,-490.0,0.00019342,2]
[365465064,1749684652592,-3368.7,0.00019342,2]
[365465065,1749684652601,-490.0,0.00019342,2]
[365465066,1749684652611,-959.36,0.00019342,2]
[365465067,1749684652621,-861.25,0.00019342,2]
[365465068,1749684652631,-490.0,0.00019342,2]
[365465069,1749684652644,-832.34,0.00019342,2]
[365465070,1749684652654,-610.44,0.00019342,2]
[365465071,1749684652665,-2104.68,0.00019342,2]
[365465072,1749684652675,-490.0,0.00019342,2]
[365465073,1749684652685,-710.5,0.00019342,2]
[365465074,1749684652695,-490.0,0.00019342,2]
[365465075,1749684652704,-2004.61,0.00019342,2]
[365465076,1749684652715,-490.0,0.00019342,2]
[365465077,1749684652725,-490.0,0.00019342,2]
[365465078,1749684652735,-601.1,0.00019342,2]
[365465079,1749684652744,-490.0,0.00019342,2]
[365465080,1749684652754,-506.16,0.00019342,2]
[365465081,1749684652764,-490.0,0.00019342,2]
[365465082,1749684652774,-490.0,0.00019342,2]
[365465083,1749684652784,-1240.24,0.00019342,2]
[365465084,1749684652794,-3536.61,0.00019342,2]
[365465085,1749684652805,-1283.53,0.00019342,2]
[365465086,1749684652814,-509.94,0.00019342,2]
[365465087,1749684652824,-2320.57,0.00019342,2]
[365465088,1749684652833,-490.0,0.00019342,2]
[365465089,1749684652843,-490.0,0.00019342,2]
[365465090,1749684652853,-490.0,0.00019342,2]
[365465091,1749684652863,-490.0,0.00019342,2]
[365465092,1749684652875,-490.0,0.00019342,2]
[365465093,1749684652888,-490.0,0.00019342,2]
[365465094,1749684652898,-2344.78,0.00019342,2]
[365465095,1749684652908,-1991.67,0.00019342,2]
[365465096,1749684652918,-490.0,0.00019342,2]
[365465097,1749684652928,-490.0,0.00019342,2]
[365465098,1749684652937,-12976.27,0.00019342,2]